bitfinex-derivatives/quotes_SOLF0:USTF0_20220106
["timestamp","ask_amount","ask_price","bid_price","bid_amount"]
[1641475572530,37.97629192,149.02,149.01,0.87822899]
[1641475573130,37.97629192,149.02,148.98,0.87822899]
[1641475573332,12.01115723,149.03,148.95,27.66479]
[1641475573333,49.98744915,149.03,148.95,27.66479]
[1641475573531,49.98744915,149.03,148.98,0.87822899]
[1641475573731,53.10922016,149.03,148.99,0.87822899]
[1641475574133,49.98744915,149.03,148.95,27.66479]
[1641475574333,49.98744915,149.03,149.02,0.87822899]
[1641475574532,49.98744915,149.03,148.96,4.0]
[1641475574731,49.98744915,149.03,149.01,0.87822899]
[1641475574933,49.98744915,149.03,148.95,27.66479]
[1641475575132,12.01115723,149.03,148.95,27.66479]
[1641475575732,12.01115723,149.03,148.96,4.0]
[1641475575933,12.01115723,149.03,148.96,5.237]
[1641475576133,12.01115723,149.03,148.97,4.74367277]
[1641475576533,12.01115723,149.03,148.99,0.87822899]
[1641475576734,12.01115723,149.03,148.97,4.74367277]
[1641475577233,12.01115723,149.03,149.0,0.87822899]
[1641475577633,12.01115723,149.03,149.01,0.87822899]
[1641475577833,12.01115723,149.03,148.98,4.74367277]
[1641475578034,12.01115723,149.03,148.95,31.66479]
[1641475578035,12.01115723,149.03,148.99,4.74367277]
[1641475578235,12.01115723,149.03,149.01,0.87822899]
[1641475578635,12.01115723,149.03,148.96,6.96519067]
[1641475578836,4.0,149.01,148.96,6.96519067]
[1641475579035,55.32958,148.97,148.96,6.96519067]
[1641475579239,61.43158,148.97,148.93,37.97523951]
[1641475579436,4.0,148.96,148.93,37.97523951]
[1641475579635,4.0,148.96,148.87,4.0]
[1641475579836,61.43158,148.97,148.87,4.0]
[1641475580837,61.43158,148.97,148.9,4.0]
[1641475581039,37.97629192,148.99,148.91,31.66479]
[1641475581238,37.97629192,148.99,148.93,4.0]
[1641475581438,37.97629192,148.99,148.93,4.574]
[1641475581637,27.66479,149.0,148.93,4.574]
[1641475582639,31.66479,149.0,148.91,27.66479]
[1641475583138,37.97629192,149.01,148.87,37.97523951]
[1641475583139,27.66479,148.93,148.87,37.97523951]
[1641475583338,38.65679,148.93,148.87,37.97523951]
[1641475583538,34.65679,148.93,148.87,37.97523951]
[1641475583938,34.65679,148.93,148.89,14.23506142]
[1641475585339,34.65679,148.93,148.87,14.23506142]
[1641475586441,48.89185142,148.93,148.86,14.23506142]
[1641475586741,59.6041618,148.93,148.86,14.23506142]
[1641475586942,4.0,148.92,148.86,14.23506142]
[1641475587141,27.66479,148.87,148.86,14.23506142]
[1641475587340,33.52179,148.87,148.86,14.23506142]
[1641475587544,33.52179,148.87,148.83,14.23506142]
[1641475588745,33.52179,148.87,148.82,14.23506142]
[1641475589347,14.23506142,148.88,148.82,14.23506142]
[1641475589549,14.23506142,148.88,148.81,14.23506142]
[1641475590448,19.85706142,148.89,148.82,14.23506142]
[1641475591247,19.85706142,148.89,148.81,6.939]
[1641475591248,27.66479,148.87,148.81,25.17406142]
[1641475591849,27.66479,148.87,148.83,4.0]
[1641475592051,14.23506142,148.89,148.83,4.0]
[1641475592549,14.23506142,148.91,148.85,14.23506142]
[1641475592751,14.23506142,148.91,148.85,21.23306142]
[1641475593551,14.23506142,148.91,148.85,25.23306142]
[1641475593752,14.23506142,148.91,148.85,21.23306142]
[1641475593953,41.89985142,148.93,148.86,14.23506142]
[1641475594852,27.66479,148.93,148.87,14.23506142]
[1641475595353,4.0,148.9,148.87,14.23506142]
[1641475595554,4.0,148.88,148.83,49.37102359]
[1641475595754,6.71591672,148.85,148.83,37.97523951]
[1641475595953,12.01191672,148.85,148.83,37.97523951]
[1641475596153,12.01169121,148.85,148.83,37.97523951]
[1641475596755,12.01169121,148.85,148.75,101.28593951]
[1641475597158,16.01169121,148.85,148.75,101.28593951]
[1641475597358,27.66479,148.8,148.75,101.28593951]
[1641475597556,32.15679,148.8,148.75,38.13523951]
[1641475597756,32.15679,148.8,148.75,0.16]
[1641475598758,27.66479,148.8,148.75,0.16]
[1641475600958,27.66479,148.82,148.75,0.16]
[1641475601161,37.97629192,148.85,148.78,4.0]
[1641475601365,37.97629192,148.85,148.78,8.934]
[1641475601558,4.0,148.84,148.78,4.934]
[1641475601760,10.673,148.84,148.75,0.16]
[1641475602160,10.673,148.84,148.77,6.95986148]
[1641475602558,4.0,148.83,148.77,6.95986148]
[1641475602759,10.673,148.84,148.77,6.95986148]
[1641475602962,10.673,148.84,148.75,0.16]
[1641475603359,27.66479,148.82,148.75,0.16]
[1641475605860,31.66479,148.82,148.75,0.16]
[1641475607963,4.0,148.81,148.75,0.16]
[1641475608166,34.3820601,148.82,148.75,4.16]
[1641475608364,34.3820601,148.82,148.75,0.16]
[1641475609066,4.0,148.79,148.75,0.16]
[1641475609266,4.0,148.77,148.75,0.16]
[1641475609466,27.66479,148.76,148.75,0.16]
[1641475609666,10.717947,148.8,148.75,0.16]
[1641475610766,12.04194531,148.81,148.75,5.736]
[1641475612271,3.32688304,148.81,148.76,1.422593]
[1641475615970,3.32688304,148.81,148.76,7.350593]
[1641475616472,3.32688304,148.81,148.77,1.422593]
[1641475618375,27.66479,148.82,148.75,0.16]
[1641475619075,10.71772135,148.81,148.75,0.16]
[1641475619279,17.83172135,148.81,148.76,1.41116257]
[1641475619479,13.83172135,148.81,148.76,1.41116257]
[1641475619677,7.114,148.81,148.76,1.41116257]
[1641475620283,7.114,148.81,148.75,0.16]
[1641475620486,27.66479,148.82,148.75,6.077]
[1641475621182,27.66479,148.82,148.76,4.0]
[1641475621383,3.32759439,148.81,148.76,5.42247444]
[1641475621782,3.32759439,148.81,148.76,1.42247444]
[1641475622183,15.36617141,148.85,148.77,1.42247444]
[1641475622786,22.08186262,148.85,148.77,1.42247444]
[1641475622986,22.08186262,148.85,148.76,8.38245218]
[1641475623786,3.32759439,148.84,148.76,8.38245218]
[1641475624786,8.06259439,148.84,148.76,8.38245218]
[1641475625386,6.71659334,148.83,148.76,8.38245218]
[1641475625590,34.38138334,148.83,148.76,8.38245218]
[1641475625888,3.32759439,148.82,148.76,8.38245218]
[1641475626088,17.57666642,148.82,148.76,1.42247444]
[1641475626788,17.57666642,148.82,148.78,4.0]
[1641475626988,3.32759439,148.82,148.78,5.548]
[1641475627188,3.32759439,148.82,148.78,9.548]
[1641475627589,3.32759439,148.82,148.78,5.548]
[1641475628090,3.32759439,148.85,148.79,15.67154647]
[1641475629992,3.32759439,148.85,148.79,19.67154647]
[1641475630192,10.0432856,148.85,148.79,15.67154647]
[1641475630697,4.0,148.83,148.78,6.95997774]
[1641475630893,6.71772135,148.81,148.78,6.95997774]
[1641475631096,13.47672135,148.81,148.78,6.95997774]
[1641475631294,6.759,148.81,148.78,6.95997774]
[1641475631494,34.42379,148.81,148.78,6.95997774]
[1641475631694,34.42379,148.81,148.75,0.16]
[1641475632596,34.42379,148.81,148.75,4.16]
[1641475632796,34.42379,148.81,148.75,7.11985103]
[1641475634098,34.42379,148.81,148.75,11.11985103]
[1641475634299,6.71569121,148.85,148.75,11.11985103]
[1641475634498,6.71569121,148.85,148.76,4.0]
[1641475634699,6.71569121,148.85,148.75,15.75585103]
[1641475635399,6.71569121,148.85,148.75,7.11985103]
[1641475635600,18.74885982,148.85,148.75,7.11985103]
[1641475636402,25.88585982,148.85,148.75,7.11985103]
[1641475636702,18.74885982,148.85,148.77,4.0]
[1641475636902,18.74885982,148.85,148.77,4.453]
[1641475637102,12.03316861,148.85,148.77,4.453]
[1641475637503,12.03316861,148.85,148.77,8.453]
[1641475637702,12.03316861,148.85,148.77,4.453]
[1641475638203,27.66479,148.86,148.76,37.97523951]
[1641475638603,6.71569121,148.85,148.76,37.97523951]
[1641475638804,34.38003024,148.86,148.76,37.97523951]
[1641475639003,34.38003024,148.86,148.8,4.74830698]
[1641475639204,12.036097,148.85,148.8,4.74830698]
[1641475640305,113.0378796,148.89,148.82,4.74777708]
[1641475640506,44.6901796,148.89,148.82,4.74777708]
[1641475641105,18.74595357,148.89,148.83,4.74726445]
[1641475641305,12.03206589,148.89,148.83,4.74726445]
[1641475642004,12.03206589,148.89,148.81,4.0]
[1641475642207,12.03206589,148.89,148.84,4.74699203]
[1641475642906,12.03206589,148.89,148.81,4.0]
[1641475643105,12.03206589,148.89,148.85,4.74689223]
[1641475643705,12.03206589,148.89,148.82,4.0]
[1641475643909,12.03206589,148.89,148.81,6.95985103]
[1641475644105,12.03206589,148.89,148.82,4.0]
[1641475644508,27.66479,148.9,148.85,4.74667078]
[1641475645109,37.97629192,148.92,148.85,4.74667078]
[1641475645309,37.97629192,148.92,148.83,4.0]
[1641475645510,34.37687511,148.93,148.83,4.0]
[1641475645710,34.37687511,148.93,148.84,4.0]
[1641475645912,34.37687511,148.93,148.82,9.818]
[1641475646311,34.37687511,148.93,148.83,4.0]
[1641475646511,34.37687511,148.93,148.82,4.0]
[1641475646712,34.37687511,148.93,148.83,4.0]
[1641475647113,34.37687511,148.93,148.81,4.70875648]
[1641475647316,38.37687511,148.93,148.81,4.70875648]
[1641475647517,12.02876571,148.92,148.86,4.70875648]
[1641475647714,27.66479,148.88,148.86,4.70875648]
[1641475648515,37.97629192,148.91,148.84,4.70875648]
[1641475649316,50.0066946,148.92,148.85,4.70875648]
[1641475649717,27.66479,148.9,148.85,4.70875648]
[1641475654222,12.03006802,148.89,148.85,4.70875648]
[1641475655024,12.03006802,148.89,148.84,4.70875648]
[1641475656125,12.03006802,148.89,148.84,8.70875648]
[1641475656625,12.03006802,148.89,148.85,4.70875648]
[1641475656824,12.03006802,148.89,148.85,9.30975648]
[1641475657027,6.802e-05,148.89,148.88,4.0]
[1641475657227,56.10098021,148.96,148.88,8.581]
[1641475657428,56.10098021,148.96,148.89,4.0]
[1641475657626,37.97113828,148.93,148.89,4.0]
[1641475658027,37.97113828,148.93,148.88,36.24579]
[1641475658227,37.97113828,148.93,148.88,32.24579]
[1641475658430,43.95513828,148.93,148.88,27.66479]
[1641475658631,5.984,148.93,148.86,72.17695648]
[1641475658829,5.984,148.93,148.91,4.70875648]
[1641475659831,5.984,148.93,148.89,4.70875648]
[1641475660030,33.64879,148.93,148.89,4.70875648]
[1641475660231,37.64879,148.93,148.82,27.66479]
[1641475660432,4.0,148.92,148.82,27.66479]
[1641475661134,4.0,148.9,148.82,27.66479]
[1641475661335,7.05,148.9,148.82,27.66479]
[1641475661538,14.24103802,148.89,148.82,41.90582802]
[1641475662136,41.90582802,148.88,148.82,27.66479]
[1641475662337,41.90582802,148.88,148.82,31.66479]
[1641475662639,14.24103802,148.88,148.82,27.66479]
[1641475663337,14.24103802,148.9,148.83,14.24103802]
[1641475664039,14.24103802,148.89,148.82,41.90582802]
[1641475664241,27.66479,148.88,148.82,41.90582802]
[1641475664839,41.90582802,148.88,148.82,27.66479]
[1641475667840,41.90582802,148.88,148.82,41.90582802]
[1641475668542,14.24103802,148.88,148.82,41.90582802]
[1641475669742,14.24103802,148.9,148.83,14.24103802]
[1641475670444,41.90582802,148.9,148.83,14.24103802]
[1641475671445,3.32057283,148.89,148.83,15.66561448]
[1641475673349,10.27257283,148.89,148.83,15.66561448]
[1641475674251,24.51361085,148.89,148.83,1.42457646]
[1641475674851,3.32057283,148.88,148.83,1.42457646]
[1641475675653,17.56161085,148.89,148.83,1.42457646]
[1641475676354,17.56161085,148.91,148.84,14.24103802]
[1641475677257,14.24103802,148.91,148.84,14.24103802]
[1641475678155,14.24103802,148.9,148.84,14.24103802]
[1641475679056,14.24103802,148.9,148.83,22.63002393]
[1641475679757,14.24103802,148.91,148.84,14.24103802]
[1641475680657,14.24103802,148.9,148.83,22.63002393]
[1641475681261,14.24103802,148.91,148.84,14.24103802]
[1641475681558,14.24103802,148.91,148.85,4.0]
[1641475681758,14.24103802,148.91,148.87,4.0]
[1641475681959,3.32057283,148.92,148.87,5.337]
[1641475682761,3.32057283,148.92,148.87,33.00179]
[1641475682963,14.24103802,148.94,148.88,1.42457646]
[1641475684562,14.24103802,148.94,148.88,5.42457646]
[1641475685364,27.66479,148.97,148.88,5.42457646]
[1641475685766,41.90582802,148.99,148.88,5.42457646]
[1641475685963,41.90582802,148.99,148.88,1.42457646]
[1641475686366,27.66479,148.99,148.89,1.42457646]
[1641475686565,27.66479,148.99,148.89,5.42457646]
[1641475686765,27.66479,148.99,148.89,1.42457646]
[1641475687166,3.29749812,148.98,148.87,31.66479]
[1641475687369,3.29749812,148.98,148.87,27.66479]
[1641475687767,3.29749812,148.98,148.87,31.66479]
[1641475687966,3.29749812,148.98,148.87,27.66479]
[1641475688168,3.29749812,148.98,148.88,1.41608586]
[1641475688768,27.66479,148.94,148.88,1.41608586]
[1641475688968,33.12179,148.94,148.87,1.41608586]
[1641475689768,33.12179,148.94,148.86,64.503]
[1641475689968,27.66479,148.94,148.86,64.503]
[1641475690570,14.24103802,148.97,148.86,64.503]
[1641475690770,6.70983326,148.98,148.86,64.503]
[1641475690771,14.24103802,148.98,148.88,27.66479]
[1641475691572,3.29743807,148.97,148.89,1.41599099]
[1641475692472,3.29743807,148.98,148.89,1.41599099]
[1641475693274,3.29743807,148.98,148.89,7.80899099]
[1641475694074,3.29743807,148.98,148.89,6.393]
[1641475694775,3.29743807,148.98,148.91,27.66479]
[1641475695774,10.70803287,149.02,148.91,27.66479]
[1641475695775,14.24103802,149.01,148.97,4.0]
[1641475695975,14.24103802,149.01,148.97,10.539]
[1641475696176,37.97019278,149.04,148.97,6.539]
[1641475696375,29.75019278,149.04,148.97,6.539]
[1641475696575,11.92629198,149.09,148.99,4.0]
[1641475696776,11.92629198,149.09,149.08,27.66479]
[1641475696976,11.92629198,149.09,149.08,34.20379]
[1641475697575,4.0,149.12,149.08,34.20379]
[1641475698178,30.70488451,149.09,148.88,56.88157902]
[1641475698377,66.9477,149.08,148.88,52.88157902]
[1641475698577,4.0,149.0,148.88,56.88157902]
[1641475698777,4.0,149.0,148.92,27.66479]
[1641475698978,27.66479,149.02,148.92,27.66479]
[1641475699178,27.66479,149.02,148.95,4.0]
[1641475699378,28.98474034,149.07,148.95,5.396]
[1641475699579,28.98474034,149.07,148.97,4.0]
[1641475700382,28.98474034,149.07,148.99,4.0]
[1641475700582,28.98474034,149.07,148.99,4.454]
[1641475700783,28.98474034,149.07,149.01,27.66479]
[1641475701480,11.91630773,149.07,149.01,27.66479]
[1641475702282,11.91630773,149.08,149.01,27.66479]
[1641475704584,11.91630773,149.08,149.03,4.0]
[1641475704785,11.91630773,149.08,149.07,27.66479]
[1641475704985,11.91630773,149.08,149.07,32.66479]
[1641475705686,6.70308677,149.12,149.07,32.66479]
[1641475706288,6.70308677,149.12,149.07,27.66479]
[1641475706887,6.70308677,149.12,149.07,20.07996283]
[1641475708390,28.97645418,149.13,149.07,20.07996283]
[1641475708790,4.0,149.1,149.02,6.97075176]
[1641475708989,9.507,149.1,149.01,96.32679]
[1641475709190,5.507,149.1,149.01,27.66479]
[1641475710196,5.507,149.1,149.01,31.66479]
[1641475710397,5.507,149.1,149.01,27.66479]
[1641475710697,5.507,149.1,149.01,31.66479]
[1641475710895,35.6793163,149.13,149.06,27.66479]
[1641475711296,28.97645418,149.13,149.06,27.66479]
[1641475711497,66.8983,149.14,149.06,27.66479]
[1641475714597,11.98972132,149.13,149.06,27.66479]
[1641475715702,29.03543284,149.13,149.06,27.66479]
[1641475717303,49.90950186,149.13,149.06,27.66479]
[1641475718504,37.91978054,149.14,149.06,27.66479]
[1641475719303,37.91978054,149.13,149.06,27.66479]
[1641475721006,37.91978054,149.13,149.07,4.7400568]
[1641475722410,37.91978054,149.13,149.06,32.4048468]
[1641475722607,43.20778054,149.13,149.06,32.4048468]
[1641475723006,6.70376081,149.11,149.09,27.66479]
[1641475723206,44.62354135,149.11,149.09,27.66479]
[1641475723808,37.91978054,149.11,149.09,27.66479]
[1641475724510,37.91978054,149.1,149.09,16.28604137]
[1641475725110,11.98972132,149.1,149.09,16.28604137]
[1641475726112,37.91978054,149.12,149.09,16.28604137]
[1641475726410,37.91978054,149.12,149.06,32.4048468]
[1641475727010,14.22075643,149.09,149.06,32.4048468]
[1641475727210,14.22075643,149.09,149.06,4.7400568]
[1641475729213,14.22075643,149.1,149.07,4.7400568]
[1641475732217,14.22075643,149.11,149.07,4.7400568]
[1641475733220,41.88554643,149.11,149.04,4.7400568]
[1641475733419,47.34154643,149.11,149.04,4.7400568]
[1641475734223,14.22075643,149.09,149.02,4.7400568]
[1641475734621,19.00775643,149.09,149.02,4.7400568]
[1641475735223,19.00775643,149.09,149.01,95.0131468]
[1641475735623,14.22075643,149.09,149.01,95.0131468]
[1641475736325,4.72472806,149.05,149.01,95.0131468]
[1641475736523,4.72472806,149.05,149.01,32.4048468]
[1641475737124,4.72472806,149.07,149.02,6.16465167]
[1641475737928,4.72472806,149.06,149.01,32.4048468]
[1641475738726,4.72472806,149.05,149.01,32.4048468]
[1641475738927,10.68772806,149.05,149.01,32.4048468]
[1641475739730,4.72472806,149.04,149.01,27.66479]
[1641475740029,4.72472806,149.04,148.99,4.7400568]
[1641475740731,4.72472806,149.03,148.99,4.7400568]
[1641475741434,14.22075643,149.05,149.01,4.7400568]
[1641475742233,14.22075643,149.04,149.01,4.7400568]
[1641475742434,20.50775643,149.04,149.01,4.7400568]
[1641475742633,24.50775643,149.04,149.01,4.7400568]
[1641475742834,20.50775643,149.04,149.01,4.7400568]
[1641475743035,20.50775643,149.04,148.98,1.42441302]
[1641475743234,14.22075643,149.02,148.98,4.74243373]
[1641475744037,18.22075643,149.02,148.98,4.74243373]
[1641475744237,17.52147673,149.02,148.95,14.22075643]
[1641475744438,14.22075643,149.0,148.93,22.618075]
[1641475745337,15.29452982,149.02,148.95,27.66479]
[1641475745338,14.22075643,149.01,148.95,27.66479]
[1641475746338,14.22075643,149.01,148.96,15.64516945]
[1641475746540,15.29452982,149.02,148.96,22.618075]
[1641475746541,3.3007203,149.02,148.96,22.618075]
[1641475746739,3.3007203,149.02,148.96,27.264075]
[1641475747241,3.3007203,149.02,148.97,1.42441302]
[1641475749540,3.3007203,149.02,148.96,22.618075]
[1641475750342,17.52147673,149.02,148.96,22.618075]
[1641475750844,17.52147673,149.02,148.96,15.64516945]
[1641475751043,17.52147673,149.02,148.96,1.42441302]
[1641475753448,72.96170858,149.06,148.95,31.66479]
[1641475753651,27.66479,149.05,148.95,65.48558]
[1641475754451,27.66479,149.05,148.96,63.4293]
[1641475758556,27.66479,149.05,148.96,68.4073]
[1641475760956,27.66479,149.05,148.96,63.4293]
[1641475762757,17.53380136,149.04,148.97,22.62183208]
[1641475763560,14.22075643,149.03,148.97,1.42901055]
[1641475763760,19.47375643,149.03,148.97,1.42901055]
[1641475764563,3.31304493,149.02,148.97,1.42901055]
[1641475767270,17.53380136,149.02,148.97,1.42901055]
[1641475768068,3.31304493,149.02,148.96,63.4293]
[1641475768872,14.22075643,149.03,148.97,1.42809621]
[1641475769472,14.22075643,149.03,148.97,5.42809621]
[1641475769672,14.22075643,149.03,148.97,9.551]
[1641475770072,14.22075643,149.03,148.97,33.21579]
[1641475770573,17.52998635,149.04,148.98,1.42820323]
[1641475771374,17.52998635,149.04,148.98,6.155]
[1641475772075,17.52998635,149.04,148.99,1.42820784]
[1641475772875,14.2181606,149.03,148.98,6.155]
[1641475773075,14.2181606,149.03,148.97,27.66479]
[1641475773275,14.2181606,149.03,148.98,4.0]
[1641475773476,14.2181606,149.03,148.98,9.871]
[1641475773678,14.2181606,149.03,149.01,4.0]
[1641475773875,37.91978054,149.06,149.02,4.0]
[1641475774275,37.91978054,149.06,149.04,27.66479]
[1641475774477,37.91978054,149.06,149.04,33.49279]
[1641475774879,37.91978054,149.1,149.04,25.90676758]
[1641475775278,37.91978054,149.11,149.04,25.90676758]
[1641475776380,37.91978054,149.12,149.04,25.90676758]
[1641475776577,37.91978054,149.12,149.04,20.07876758]
[1641475777177,37.91978054,149.12,149.03,67.0773]
[1641475777178,4.0,149.11,149.03,67.0773]
[1641475777378,4.0,149.11,148.98,41.91978054]
[1641475777581,68.7165,149.1,148.99,64.7534]
[1641475777979,106.63628054,149.1,148.99,64.7534]
[1641475778180,27.66479,149.09,148.99,92.41819]
[1641475778580,33.85579,149.09,148.99,92.41819]
[1641475779180,71.77557054,149.09,148.99,92.41819]
[1641475783189,44.11078054,149.09,149.01,4.0]
[1641475783388,44.11078054,149.09,149.01,6.376]
[1641475784490,44.11078054,149.09,149.02,27.66479]
[1641475784691,6.191,149.09,149.02,27.66479]
[1641475784890,68.7165,149.1,149.02,27.66479]
[1641475785692,4.0,149.09,149.02,27.66479]
[1641475785892,4.0,149.09,148.99,92.41819]
[1641475786293,68.7165,149.1,148.99,92.41819]
[1641475786494,27.66479,149.09,148.99,92.41819]
[1641475787693,65.58457054,149.09,148.99,96.41819]
[1641475787895,65.58457054,149.09,148.99,92.41819]
[1641475788193,65.58457054,149.09,148.99,96.41819]
[1641475788396,27.66479,149.09,148.99,92.41819]
[1641475788595,27.66479,149.09,149.0,4.0]
[1641475788796,68.7165,149.1,149.0,4.645]
[1641475789196,68.7165,149.1,149.0,8.645]
[1641475790098,44.62331666,149.11,149.0,4.645]
[1641475790300,6.70353612,149.11,149.02,4.0]
[1641475790501,6.70353612,149.11,149.05,27.66479]
[1641475790899,27.66479,149.13,149.05,27.66479]
[1641475793204,27.66479,149.13,149.0,3.79241205]
[1641475793404,33.09879,149.13,149.0,3.79241205]
[1641475794405,33.09879,149.13,149.0,7.79241205]
[1641475794606,27.66479,149.13,149.03,27.66479]
[1641475794805,49.90387968,149.12,149.03,27.66479]
[1641475795607,11.98409914,149.12,149.03,27.66479]
[1641475796206,11.98409914,149.12,149.07,4.0]
[1641475796408,11.98409914,149.12,149.07,5.725]
[1641475796707,11.98409914,149.12,149.09,27.66479]
[1641475797507,9.914e-05,149.12,149.09,31.66479]
[1641475797708,37.91978054,149.14,149.09,31.66479]
[1641475797908,37.91978054,149.14,149.09,27.66479]
[1641475798111,37.91978054,149.14,149.09,31.66479]
[1641475798411,37.91978054,149.17,149.09,27.66479]
[1641475798610,37.91978054,149.17,149.09,55.32958]
[1641475798814,37.91978054,149.17,149.09,61.62758]
[1641475799212,37.91978054,149.17,149.09,65.62758]
[1641475799416,37.91978054,149.19,149.09,65.62758]
[1641475799812,37.91978054,149.19,149.11,4.0]
[1641475800213,37.91978054,149.19,149.14,4.0]
[1641475800413,37.91978054,149.19,149.14,9.967]
[1641475800620,37.91978054,149.19,149.15,27.66479]
[1641475801417,37.91978054,149.22,149.17,4.0]
[1641475802315,37.91978054,149.22,149.16,69.3895]
[1641475802515,37.91978054,149.22,149.19,27.66479]
[1641475802715,37.91978054,149.23,149.19,27.66479]
[1641475803518,37.91978054,149.24,149.19,27.66479]
[1641475804317,17.01684542,149.26,149.19,27.66479]
[1641475804518,17.01684542,149.26,149.19,55.32958]
[1641475804817,14.2079577,149.23,149.19,60.06632126]
[1641475805021,14.2079577,149.23,149.2,4.0]
[1641475805022,5.77e-05,149.23,149.2,4.0]
[1641475805720,17.01684542,149.28,149.22,4.73674126]
[1641475805918,17.01684542,149.3,149.22,10.13974126]
[1641475806118,17.01684542,149.3,149.22,79.03344126]
[1641475806418,17.01684542,149.3,149.23,4.0]
[1641475806618,56.88636183,149.33,149.27,27.66479]
[1641475807019,16.99519121,149.33,149.27,27.66479]
[1641475808420,56.88636183,149.38,149.27,27.66479]
[1641475808623,56.88636183,149.38,149.3,27.66479]
[1641475809423,6.69209663,149.37,149.3,27.66479]
[1641475809721,10.47934631,149.37,149.3,27.66479]
[1641475810021,10.47934631,149.37,149.27,32.40153126]
[1641475810223,13.38409663,149.37,149.27,32.40153126]
[1641475810422,13.38409663,149.37,149.27,27.66479]
[1641475810623,3.78728373,149.36,149.27,27.66479]
[1641475813022,6.69209663,149.37,149.27,27.66479]
[1641475813424,3.78692317,149.36,149.27,27.66479]
[1641475813622,3.78692317,149.36,149.27,32.40153126]
[1641475813821,3.78692317,149.37,149.27,32.40153126]
[1641475814722,27.66479,149.36,149.27,4.73674126]
[1641475814923,6.69321643,149.34,149.28,6.17487664]
[1641475815721,6.69321643,149.34,149.25,68.6019]
[1641475815922,7.78753984,149.33,149.25,68.6019]
[1641475816123,12.47153984,149.33,149.25,68.6019]
[1641475816322,3.78753984,149.32,149.24,27.66479]
[1641475816722,27.66479,149.3,149.24,27.66479]
[1641475816923,32.35879,149.3,149.24,27.66479]
[1641475817523,4.694,149.3,149.24,27.66479]
[1641475820230,3.29658021,149.29,149.24,32.40153126]
[1641475822231,3.29658021,149.29,149.24,27.66479]
[1641475822431,3.29658021,149.29,149.22,4.73674126]
[1641475823031,27.66479,149.28,149.22,4.73674126]
[1641475823834,15.24378941,149.27,149.22,4.73674126]
[1641475824036,26.04678941,149.27,149.22,4.73674126]
[1641475824235,22.04678941,149.27,149.22,4.126e-05]
[1641475824633,3.29658021,149.26,149.18,27.66479]
[1641475825434,41.18178821,149.26,149.19,1.43734776]
[1641475827136,3.29658021,149.26,149.19,1.43734776]
[1641475827939,15.24378941,149.27,149.19,1.43734776]
[1641475829737,6.69725078,149.25,149.19,1.43734776]
[1641475829939,4.0,149.22,149.19,1.43734776]
[1641475830138,5.763,149.22,149.19,1.43734776]
[1641475831137,6.69725078,149.25,149.19,1.43734776]
[1641475831340,27.66479,149.24,149.19,1.43734776]
[1641475831538,3.29658021,149.21,149.15,7.08034776]
[1641475832441,3.29658021,149.23,149.16,1.43734776]
[1641475833242,3.29658021,149.23,149.15,8.42750665]
[1641475834043,15.25143409,149.23,149.15,8.42750665]
[1641475834845,15.25143409,149.23,149.15,1.43734776]
[1641475836848,14.2107281,149.19,149.14,27.66479]
[1641475837448,4.0,149.2,149.15,1.43713682]
[1641475839048,4.0,149.2,149.13,14.2107281]
[1641475839248,21.50784011,149.19,149.12,14.2107281]
[1641475839452,17.50784011,149.19,149.12,14.2107281]
[1641475839849,21.50784011,149.19,149.12,14.2107281]
[1641475840048,17.50784011,149.19,149.12,14.2107281]
[1641475840249,14.2112599,149.17,149.11,1.43709797]
[1641475841049,17.50784011,149.19,149.12,14.2107281]
[1641475841450,17.50784011,149.19,149.13,27.66479]
[1641475842251,17.50784011,149.19,149.14,1.43711027]
[1641475842851,14.2112599,149.19,149.13,41.8755181]
[1641475843053,100.40189,149.2,149.13,27.66479]
[1641475843755,4.0,149.18,149.13,27.66479]
[1641475844155,104.40189,149.2,149.13,27.66479]
[1641475844956,95.45789,149.2,149.13,20.0843727]
[1641475845357,14.01760921,149.18,149.14,1.436986]
[1641475846558,5.994,149.18,149.14,1.436986]
[1641475847757,3.30066048,149.17,149.14,1.436986]
[1641475848560,17.31826969,149.19,149.14,1.436986]
[1641475849963,14.01760921,149.18,149.14,1.436986]
[1641475851665,17.31826969,149.19,149.16,27.66479]
[1641475852266,17.31826969,149.23,149.17,1.436986]